[Event "Titled Tuesday Blitz March 28 Early 2023"]
[White "Melikhov, Evgeny V."]
[Black "Galchenko, Matvey"]
[WhiteFideId "4122046"]
[BlackFideId "24175480"]
[WhiteElo "2158"]
[BlackElo "2404"]
[Result "0-1"]
[Round "01"]
[TimeControl "180+2"]
[Date "2023.03.28"]
[WhiteClock "0:00:03"]
[BlackClock "0:00:24"]

1. d4 {[%clk 0:02:55]}  Nf6 {[%clk 0:02:57]} 2. c4 {[%clk 0:02:54]}  c5 {[%clk 0:02:57]} 3. d5 {[%clk 0:02:54]}  e6 {[%clk 0:02:57]} 4. Nc3 {[%clk 0:02:53]}  exd5 {[%clk 0:02:57]} 5. cxd5 {[%clk 0:02:54]}  d6 {[%clk 0:02:58]} 6. Nf3 {[%clk 0:02:54]}  g6 {[%clk 0:02:58]} 7. h3 {[%clk 0:02:55]}  Bg7 {[%clk 0:02:59]} 8. e4 {[%clk 0:02:55]}  O-O {[%clk 0:02:59]} 9. Be3 {[%clk 0:02:54]}  b5 {[%clk 0:02:52]} 10. Bxb5 {[%clk 0:02:51]}  Nxe4 {[%clk 0:02:50]} 11. O-O {[%clk 0:01:40]}  Nxc3 {[%clk 0:02:22]} 12. bxc3 {[%clk 0:01:39]}  Bxc3 {[%clk 0:02:23]} 13. Bh6 {[%clk 0:01:37]}  Bg7 {[%clk 0:02:18]} 14. Bxg7 {[%clk 0:01:37]}  Kxg7 {[%clk 0:02:19]} 15. Re1 {[%clk 0:01:34]}  Bd7 {[%clk 0:02:17]} 16. Rb1 {[%clk 0:01:25]}  Bxb5 {[%clk 0:02:12]} 17. Rxb5 {[%clk 0:01:24]}  Nd7 {[%clk 0:02:13]} 18. Rb7 {[%clk 0:01:14]}  Qc8 {[%clk 0:01:41]} 19. Qb1 {[%clk 0:00:34]}  Nb6 {[%clk 0:01:15]} 20. Ree7 {[%clk 0:00:28]}  Nxd5 {[%clk 0:01:15]} 21. Qb2+ {[%clk 0:00:24]}  Kg8 {[%clk 0:01:15]} 22. Red7 {[%clk 0:00:22]}  Nb6 {[%clk 0:01:00]} 23. Rdc7 {[%clk 0:00:20]}  Qf5 {[%clk 0:00:55]} 24. Rxa7 {[%clk 0:00:17]}  Rxa7 {[%clk 0:00:55]} 25. Rxa7 {[%clk 0:00:18]}  Nd5 {[%clk 0:00:54]} 26. Qb7 {[%clk 0:00:16]}  Nf4 {[%clk 0:00:47]} 27. a4 {[%clk 0:00:10]}  c4 {[%clk 0:00:42]} 28. Nd4 {[%clk 0:00:09]}  Qe5 {[%clk 0:00:38]} 29. Nc6 {[%clk 0:00:07]}  Qe1+ {[%clk 0:00:29]} 30. Kh2 {[%clk 0:00:07]}  Ne2 {[%clk 0:00:23]} 31. Ne7+ {[%clk 0:00:04]}  Kg7 {[%clk 0:00:23]} 32. Qb2+ {[%clk 0:00:03]}  c3 {[%clk 0:00:24]} 0-1


[Site "https://www.chess.com"]

[Event "Titled Tuesday Blitz March 28 Early 2023"]
[White "Albornoz Cabrera, Carlos Daniel"]
[Black "Balague Camps, Marc"]
[WhiteFideId "3518736"]
[BlackFideId "2297914"]
[WhiteElo "2501"]
[BlackElo "2089"]
[Result "1-0"]
[Round "01"]
[TimeControl "180+2"]
[Date "2023.03.28"]
[WhiteClock "0:01:16"]
[BlackClock "0:00:57"]

1. c4 {[%clk 0:03:00]}  Nf6 {[%clk 0:02:58]} 2. Nc3 {[%clk 0:03:00]}  e6 {[%clk 0:02:58]} 3. d4 {[%clk 0:02:58]}  d5 {[%clk 0:02:58]} 4. cxd5 {[%clk 0:02:57]}  exd5 {[%clk 0:02:58]} 5. Bg5 {[%clk 0:02:57]}  c6 {[%clk 0:02:59]} 6. e3 {[%clk 0:02:57]}  Nbd7 {[%clk 0:02:59]} 7. Bd3 {[%clk 0:02:57]}  Be7 {[%clk 0:02:53]} 8. Nge2 {[%clk 0:02:54]}  h6 {[%clk 0:02:53]} 9. Bh4 {[%clk 0:02:54]}  O-O {[%clk 0:02:53]} 10. O-O {[%clk 0:02:52]}  Re8 {[%clk 0:02:54]} 11. Rb1 {[%clk 0:02:44]}  a5 {[%clk 0:02:54]} 12. Qc2 {[%clk 0:02:41]}  Ne4 {[%clk 0:02:48]} 13. Bxe7 {[%clk 0:02:38]}  Qxe7 {[%clk 0:02:49]} 14. Bxe4 {[%clk 0:02:28]}  dxe4 {[%clk 0:02:50]} 15. Na4 {[%clk 0:02:28]}  Nf6 {[%clk 0:02:38]} 16. Nb6 {[%clk 0:02:25]}  Ra6 {[%clk 0:02:29]} 17. Nxc8 {[%clk 0:02:25]}  Rxc8 {[%clk 0:02:29]} 18. Rfc1 {[%clk 0:02:25]}  Rb6 {[%clk 0:02:27]} 19. Qc5 {[%clk 0:02:23]}  Qxc5 {[%clk 0:02:26]} 20. Rxc5 {[%clk 0:02:24]}  Ra8 {[%clk 0:02:21]} 21. Nc3 {[%clk 0:02:20]}  Nd7 {[%clk 0:02:13]} 22. Rh5 {[%clk 0:02:09]}  Nf6 {[%clk 0:02:05]} 23. Re5 {[%clk 0:02:09]}  a4 {[%clk 0:02:01]} 24. Nxe4 {[%clk 0:02:06]}  Nxe4 {[%clk 0:01:53]} 25. Rxe4 {[%clk 0:02:07]}  Ra5 {[%clk 0:01:54]} 26. Re8+ {[%clk 0:02:00]}  Kh7 {[%clk 0:01:54]} 27. g4 {[%clk 0:01:52]}  Rab5 {[%clk 0:01:49]} 28. Ra8 {[%clk 0:01:51]}  Rxb2 {[%clk 0:01:35]} 29. Rxb2 {[%clk 0:01:52]}  Rxb2 {[%clk 0:01:35]} 30. Rxa4 {[%clk 0:01:53]}  Kg6 {[%clk 0:01:34]} 31. Kg2 {[%clk 0:01:53]}  Kg5 {[%clk 0:01:35]} 32. Kg3 {[%clk 0:01:53]}  g6 {[%clk 0:01:34]} 33. h4+ {[%clk 0:01:46]}  Kf6 {[%clk 0:01:34]} 34. Ra8 {[%clk 0:01:46]}  Ke6 {[%clk 0:01:25]} 35. a4 {[%clk 0:01:44]}  Ra2 {[%clk 0:01:25]} 36. a5 {[%clk 0:01:44]}  b5 {[%clk 0:01:21]} 37. a6 {[%clk 0:01:38]}  Ke7 {[%clk 0:01:14]} 38. a7 {[%clk 0:01:37]}  b4 {[%clk 0:01:14]} 39. Rb8 {[%clk 0:01:34]}  Rxa7 {[%clk 0:01:14]} 40. Rxb4 {[%clk 0:01:34]}  Kd6 {[%clk 0:01:14]} 41. Rb8 {[%clk 0:01:33]}  h5 {[%clk 0:01:07]} 42. gxh5 {[%clk 0:01:32]}  gxh5 {[%clk 0:01:08]} 43. Rh8 {[%clk 0:01:30]}  Ra5 {[%clk 0:01:08]} 44. Rh6+ {[%clk 0:01:30]}  Kd7 {[%clk 0:01:08]} 45. Kf4 {[%clk 0:01:28]}  Rd5 {[%clk 0:01:05]} 46. Ke4 {[%clk 0:01:24]}  Ra5 {[%clk 0:01:03]} 47. Rf6 {[%clk 0:01:22]}  c5 {[%clk 0:00:56]} 48. Rxf7+ {[%clk 0:01:18]}  Ke6 {[%clk 0:00:57]} 49. Rf5 {[%clk 0:01:16]} 1-0


[Site "https://www.chess.com"]

[Event "Titled Tuesday Blitz March 28 Early 2023"]
[White "Harriott, Tyrell"]
[Black "Preotu, Razvan"]
[WhiteFideId "2086484"]
[BlackFideId "2613280"]
[WhiteElo "2107"]
[BlackElo "2407"]
[Result "0-1"]
[Round "01"]
[TimeControl "180+2"]
[Date "2023.03.28"]
[WhiteClock "0:00:51"]
[BlackClock "0:00:12"]

1. d4 {[%clk 0:02:57]}  Nf6 {[%clk 0:02:59]} 2. e3 {[%clk 0:02:57]}  d5 {[%clk 0:02:58]} 3. Bd3 {[%clk 0:02:58]}  c5 {[%clk 0:02:57]} 4. c3 {[%clk 0:02:58]}  Nc6 {[%clk 0:02:58]} 5. f4 {[%clk 0:02:57]}  g6 {[%clk 0:02:48]} 6. Nf3 {[%clk 0:02:56]}  Bg7 {[%clk 0:02:48]} 7. O-O {[%clk 0:02:55]}  Bf5 {[%clk 0:02:47]} 8. Ne5 {[%clk 0:02:50]}  Bxd3 {[%clk 0:02:37]} 9. Qxd3 {[%clk 0:02:48]}  Qb6 {[%clk 0:02:26]} 10. Nd2 {[%clk 0:02:45]}  O-O {[%clk 0:02:25]} 11. Qe2 {[%clk 0:02:42]}  Rfd8 {[%clk 0:02:08]} 12. Nef3 {[%clk 0:02:37]}  Rac8 {[%clk 0:02:01]} 13. Qe1 {[%clk 0:02:32]}  e6 {[%clk 0:01:55]} 14. Kh1 {[%clk 0:02:31]}  Ne7 {[%clk 0:01:55]} 15. h3 {[%clk 0:02:28]}  Nf5 {[%clk 0:01:55]} 16. g4 {[%clk 0:02:28]}  Nd6 {[%clk 0:01:55]} 17. Rf2 {[%clk 0:02:22]}  Qa6 {[%clk 0:01:24]} 18. Rg2 {[%clk 0:02:09]}  b5 {[%clk 0:01:12]} 19. Nb3 {[%clk 0:02:02]}  Nfe4 {[%clk 0:01:10]} 20. Nfd2 {[%clk 0:01:58]}  cxd4 {[%clk 0:01:05]} 21. exd4 {[%clk 0:01:55]}  b4 {[%clk 0:01:05]} 22. Nxe4 {[%clk 0:01:49]}  Nxe4 {[%clk 0:01:05]} 23. cxb4 {[%clk 0:01:45]}  Rc4 {[%clk 0:00:37]} 24. Be3 {[%clk 0:01:37]}  Rdc8 {[%clk 0:00:32]} 25. Nc5 {[%clk 0:01:35]}  Qb5 {[%clk 0:00:31]} 26. Nxe4 {[%clk 0:01:18]}  dxe4 {[%clk 0:00:32]} 27. a3 {[%clk 0:01:15]}  Bxd4 {[%clk 0:00:27]} 28. b3 {[%clk 0:01:07]}  Rc3 {[%clk 0:00:11]} 29. Bxd4 {[%clk 0:01:04]}  Rxh3+ {[%clk 0:00:12]} 30. Kg1 {[%clk 0:01:04]}  Qd3 {[%clk 0:00:11]} 31. Rd1 {[%clk 0:00:56]}  Qf3 {[%clk 0:00:12]} 32. Qf2 {[%clk 0:00:51]}  Qxd1+ {[%clk 0:00:12]} 0-1


[Site "https://www.chess.com"]

[Event "Titled Tuesday Blitz March 28 Early 2023"]
[White "Pniaczek, Marek"]
[Black "Samunenkov, Ihor"]
[WhiteFideId "21800421"]
[BlackFideId "14187086"]
[WhiteElo "2138"]
[BlackElo "2457"]
[Result "0-1"]
[Round "01"]
[TimeControl "180+2"]
[Date "2023.03.28"]
[WhiteClock "0:00:05"]
[BlackClock "0:00:19"]

1. e4 {[%clk 0:03:00]}  c6 {[%clk 0:02:57]} 2. Nf3 {[%clk 0:03:00]}  d5 {[%clk 0:02:58]} 3. Nc3 {[%clk 0:03:00]}  dxe4 {[%clk 0:02:56]} 4. Nxe4 {[%clk 0:03:00]}  Nf6 {[%clk 0:02:56]} 5. Qe2 {[%clk 0:03:00]}  Nxe4 {[%clk 0:02:55]} 6. Qxe4 {[%clk 0:03:01]}  Nd7 {[%clk 0:02:56]} 7. Bc4 {[%clk 0:03:01]}  Nf6 {[%clk 0:02:56]} 8. Qe2 {[%clk 0:03:00]}  Bf5 {[%clk 0:02:50]} 9. d3 {[%clk 0:02:40]}  e6 {[%clk 0:02:41]} 10. O-O {[%clk 0:02:39]}  Be7 {[%clk 0:02:40]} 11. h3 {[%clk 0:02:37]}  h6 {[%clk 0:02:37]} 12. a4 {[%clk 0:02:34]}  a5 {[%clk 0:02:32]} 13. Bf4 {[%clk 0:02:23]}  O-O {[%clk 0:02:30]} 14. Rfe1 {[%clk 0:02:17]}  Nd5 {[%clk 0:02:26]} 15. Bg3 {[%clk 0:02:15]}  Bd6 {[%clk 0:02:16]} 16. Bxd6 {[%clk 0:01:42]}  Qxd6 {[%clk 0:02:16]} 17. Ne5 {[%clk 0:01:42]}  f6 {[%clk 0:01:42]} 18. Ng4 {[%clk 0:01:34]}  e5 {[%clk 0:01:40]} 19. Qf3 {[%clk 0:01:06]}  Qd7 {[%clk 0:01:19]} 20. Qg3 {[%clk 0:00:50]}  Kh8 {[%clk 0:01:18]} 21. Bb3 {[%clk 0:00:36]}  Nf4 {[%clk 0:01:13]} 22. Ne3 {[%clk 0:00:20]}  Be6 {[%clk 0:01:08]} 23. Bxe6 {[%clk 0:00:19]}  Nxe6 {[%clk 0:01:08]} 24. Nc4 {[%clk 0:00:19]}  Qc7 {[%clk 0:00:54]} 25. Qg4 {[%clk 0:00:19]}  Nd4 {[%clk 0:00:52]} 26. Rac1 {[%clk 0:00:18]}  Rad8 {[%clk 0:00:51]} 27. Ne3 {[%clk 0:00:17]}  f5 {[%clk 0:00:47]} 28. Qg6 {[%clk 0:00:17]}  f4 {[%clk 0:00:31]} 29. Ng4 {[%clk 0:00:17]}  f3 {[%clk 0:00:31]} 30. Rcd1 {[%clk 0:00:17]}  Ne2+ {[%clk 0:00:27]} 31. Kf1 {[%clk 0:00:15]}  e4 {[%clk 0:00:24]} 32. Qxe4 {[%clk 0:00:08]}  Rde8 {[%clk 0:00:17]} 33. Qg6 {[%clk 0:00:06]}  fxg2+ {[%clk 0:00:18]} 34. Kxg2 {[%clk 0:00:04]}  Nf4+ {[%clk 0:00:18]} 35. Kg3 {[%clk 0:00:05]}  Nxg6+ {[%clk 0:00:19]} 0-1


[Site "https://www.chess.com"]

[Event "Titled Tuesday Blitz March 28 Early 2023"]
[White "Zubritskiy, Artyom"]
[Black "Leve, Nitai"]
[WhiteFideId "4181247"]
[BlackFideId "2006898"]
[WhiteElo "2419"]
[BlackElo "2144"]
[Result "1-0"]
[Round "01"]
[TimeControl "180+2"]
[Date "2023.03.28"]
[WhiteClock "0:00:49"]
[BlackClock "0:00:44"]

1. d4 {[%clk 0:02:59]}  Nf6 {[%clk 0:02:59]} 2. c4 {[%clk 0:02:58]}  g6 {[%clk 0:02:59]} 3. g3 {[%clk 0:02:58]}  d5 {[%clk 0:02:59]} 4. Bg2 {[%clk 0:02:57]}  dxc4 {[%clk 0:02:58]} 5. Na3 {[%clk 0:02:55]}  Bg7 {[%clk 0:02:58]} 6. Nxc4 {[%clk 0:02:55]}  O-O {[%clk 0:02:58]} 7. Nf3 {[%clk 0:02:53]}  Nc6 {[%clk 0:02:55]} 8. O-O {[%clk 0:02:51]}  Bg4 {[%clk 0:02:52]} 9. Nce5 {[%clk 0:02:46]}  Bxf3 {[%clk 0:02:48]} 10. Nxf3 {[%clk 0:02:46]}  Ne4 {[%clk 0:02:10]} 11. Qc2 {[%clk 0:02:32]}  Nd6 {[%clk 0:01:59]} 12. Rd1 {[%clk 0:02:27]}  e6 {[%clk 0:01:51]} 13. Bg5 {[%clk 0:02:17]}  Qe8 {[%clk 0:01:48]} 14. Rac1 {[%clk 0:02:16]}  h6 {[%clk 0:01:46]} 15. Bd2 {[%clk 0:02:09]}  Rd8 {[%clk 0:01:33]} 16. e3 {[%clk 0:02:05]}  Qe7 {[%clk 0:01:28]} 17. a3 {[%clk 0:01:45]}  a6 {[%clk 0:01:25]} 18. Qb3 {[%clk 0:01:36]}  Qd7 {[%clk 0:01:07]} 19. Be1 {[%clk 0:01:30]}  Ne7 {[%clk 0:01:05]} 20. Ne5 {[%clk 0:01:21]}  Qc8 {[%clk 0:01:02]} 21. Ba5 {[%clk 0:01:15]}  Bxe5 {[%clk 0:00:51]} 22. Rxc7 {[%clk 0:01:08]}  Qb8 {[%clk 0:00:51]} 23. dxe5 {[%clk 0:01:00]}  Ndf5 {[%clk 0:00:44]} 24. Rxb7 {[%clk 0:00:48]}  Rxd1+ {[%clk 0:00:44]} 25. Qxd1 {[%clk 0:00:49]}  Qxb7 {[%clk 0:00:44]} 26. Bxb7 {[%clk 0:00:49]} 1-0


[Site "https://www.chess.com"]

[Event "Titled Tuesday Blitz March 28 Early 2023"]
[White "Meunier-Pion, Jean"]
[Black "Molina, Roberto Junio Brito"]
[WhiteFideId "20685327"]
[BlackFideId "2109450"]
[WhiteElo "2124"]
[BlackElo "2376"]
[Result "0-1"]
[Round "01"]
[TimeControl "180+2"]
[Date "2023.03.28"]
[WhiteClock "0:00:06"]
[BlackClock "0:00:30"]

1. e4 {[%clk 0:02:59]}  c6 {[%clk 0:02:57]} 2. d4 {[%clk 0:02:59]}  d5 {[%clk 0:02:58]} 3. e5 {[%clk 0:03:00]}  Bf5 {[%clk 0:02:58]} 4. Nf3 {[%clk 0:03:00]}  e6 {[%clk 0:02:58]} 5. Be2 {[%clk 0:03:01]}  Nd7 {[%clk 0:02:58]} 6. O-O {[%clk 0:03:01]}  Bg6 {[%clk 0:02:58]} 7. Nbd2 {[%clk 0:03:02]}  Nh6 {[%clk 0:02:58]} 8. Nb3 {[%clk 0:03:03]}  Nf5 {[%clk 0:02:59]} 9. a4 {[%clk 0:03:03]}  Be7 {[%clk 0:02:58]} 10. a5 {[%clk 0:03:03]}  O-O {[%clk 0:02:57]} 11. c4 {[%clk 0:02:54]}  dxc4 {[%clk 0:02:56]} 12. Bxc4 {[%clk 0:02:54]}  b5 {[%clk 0:02:56]} 13. Be2 {[%clk 0:02:49]}  a6 {[%clk 0:02:56]} 14. g4 {[%clk 0:02:43]}  Nh4 {[%clk 0:02:56]} 15. Be3 {[%clk 0:02:26]}  Rc8 {[%clk 0:02:54]} 16. Nxh4 {[%clk 0:02:23]}  Bxh4 {[%clk 0:02:55]} 17. f4 {[%clk 0:02:23]}  Be4 {[%clk 0:02:48]} 18. Bf3 {[%clk 0:02:07]}  Bd5 {[%clk 0:02:40]} 19. Nc5 {[%clk 0:02:04]}  Nxc5 {[%clk 0:02:38]} 20. dxc5 {[%clk 0:02:04]}  Be7 {[%clk 0:02:37]} 21. b4 {[%clk 0:02:03]}  Qe8 {[%clk 0:02:34]} 22. Bxd5 {[%clk 0:02:01]}  exd5 {[%clk 0:02:20]} 23. f5 {[%clk 0:01:59]}  Bf6 {[%clk 0:02:04]} 24. Bf4 {[%clk 0:01:57]}  Bxe5 {[%clk 0:02:03]} 25. Re1 {[%clk 0:01:58]}  f6 {[%clk 0:01:50]} 26. Ra2 {[%clk 0:01:53]}  Bxf4 {[%clk 0:01:27]} 27. Rxe8 {[%clk 0:01:51]}  Rcxe8 {[%clk 0:01:28]} 28. Re2 {[%clk 0:01:47]}  Rxe2 {[%clk 0:01:28]} 29. Qxe2 {[%clk 0:01:48]}  Be5 {[%clk 0:01:28]} 30. g5 {[%clk 0:01:43]}  Re8 {[%clk 0:01:27]} 31. Qh5 {[%clk 0:01:36]}  Re7 {[%clk 0:01:27]} 32. g6 {[%clk 0:01:25]}  h6 {[%clk 0:01:27]} 33. Qg4 {[%clk 0:01:19]}  Kf8 {[%clk 0:01:27]} 34. h4 {[%clk 0:01:16]}  Ke8 {[%clk 0:01:28]} 35. h5 {[%clk 0:01:16]}  Kd7 {[%clk 0:01:28]} 36. Kf1 {[%clk 0:01:12]}  Bc7 {[%clk 0:01:26]} 37. Qf3 {[%clk 0:01:07]}  Re4 {[%clk 0:01:26]} 38. Qb3 {[%clk 0:01:04]}  Be5 {[%clk 0:01:23]} 39. Qb1 {[%clk 0:01:03]}  Rh4 {[%clk 0:01:20]} 40. Kg2 {[%clk 0:01:03]}  Rxh5 {[%clk 0:01:16]} 41. Kf3 {[%clk 0:01:04]}  Rh4 {[%clk 0:01:14]} 42. Kg2 {[%clk 0:01:03]}  Rg4+ {[%clk 0:01:09]} 43. Kh3 {[%clk 0:01:02]}  Rg3+ {[%clk 0:01:08]} 44. Kh4 {[%clk 0:01:03]}  Rc3 {[%clk 0:01:04]} 45. Kg4 {[%clk 0:00:56]}  Rc4+ {[%clk 0:01:04]} 46. Kh3 {[%clk 0:00:45]}  Re4 {[%clk 0:01:00]} 47. Kg2 {[%clk 0:00:39]}  Bc3 {[%clk 0:00:55]} 48. Kf3 {[%clk 0:00:30]}  Bxb4 {[%clk 0:00:54]} 49. Kf2 {[%clk 0:00:28]}  Bxc5+ {[%clk 0:00:51]} 50. Kg2 {[%clk 0:00:28]}  Bd6 {[%clk 0:00:45]} 51. Qd3 {[%clk 0:00:28]}  Re5 {[%clk 0:00:43]} 52. Kh3 {[%clk 0:00:26]}  c5 {[%clk 0:00:43]} 53. Kg4 {[%clk 0:00:24]}  Kc6 {[%clk 0:00:43]} 54. Qc2 {[%clk 0:00:21]}  c4 {[%clk 0:00:43]} 55. Qf2 {[%clk 0:00:20]}  Bc5 {[%clk 0:00:43]} 56. Qf4 {[%clk 0:00:17]}  b4 {[%clk 0:00:42]} 57. Kh5 {[%clk 0:00:16]}  b3 {[%clk 0:00:39]} 58. Qh2 {[%clk 0:00:13]}  Kb5 {[%clk 0:00:38]} 59. Qb2 {[%clk 0:00:12]}  Kxa5 {[%clk 0:00:34]} 60. Kg4 {[%clk 0:00:12]}  Kb5 {[%clk 0:00:34]} 61. Kh5 {[%clk 0:00:12]}  a5 {[%clk 0:00:35]} 62. Kg4 {[%clk 0:00:13]}  a4 {[%clk 0:00:35]} 63. Qa1 {[%clk 0:00:13]}  a3 {[%clk 0:00:35]} 64. Qc3 {[%clk 0:00:13]}  a2 {[%clk 0:00:35]} 65. Qb2 {[%clk 0:00:13]}  d4 {[%clk 0:00:34]} 66. Qg2 {[%clk 0:00:10]}  Kb4 {[%clk 0:00:33]} 67. Qd2+ {[%clk 0:00:10]}  c3 {[%clk 0:00:33]} 68. Qd1 {[%clk 0:00:10]}  b2 {[%clk 0:00:32]} 69. Qh1 {[%clk 0:00:10]}  Bb6 {[%clk 0:00:31]} 70. Qc6 {[%clk 0:00:10]}  Rb5 {[%clk 0:00:30]} 71. Qd6+ {[%clk 0:00:10]}  Bc5 {[%clk 0:00:30]} 72. Qd7 {[%clk 0:00:06]}  a1=Q {[%clk 0:00:30]} 73. Qe6 {[%clk 0:00:06]}  Qg1+ {[%clk 0:00:30]} 74. Kh5 {[%clk 0:00:06]}  Qg5# {[%clk 0:00:30]} 0-1


[Site "https://www.chess.com"]

[Event "Titled Tuesday Blitz March 28 Early 2023"]
[White "Vedder, Richard"]
[Black "Mahdavi, Reza"]
[WhiteFideId "1004166"]
[BlackFideId "12595926"]
[WhiteElo "2168"]
[BlackElo "2208"]
[Result "0-1"]
[Round "01"]
[TimeControl "180+2"]
[Date "2023.03.28"]
[WhiteClock "0:00:18"]
[BlackClock "0:00:10"]

1. d4 {[%clk 0:03:00]}  Nf6 {[%clk 0:02:59]} 2. c4 {[%clk 0:02:59]}  g6 {[%clk 0:02:56]} 3. Nc3 {[%clk 0:02:59]}  Bg7 {[%clk 0:02:56]} 4. e4 {[%clk 0:02:59]}  d6 {[%clk 0:02:56]} 5. Nf3 {[%clk 0:02:59]}  O-O {[%clk 0:02:55]} 6. Be2 {[%clk 0:03:00]}  Nbd7 {[%clk 0:02:55]} 7. O-O {[%clk 0:03:00]}  e5 {[%clk 0:02:55]} 8. d5 {[%clk 0:03:00]}  Nc5 {[%clk 0:02:53]} 9. Qc2 {[%clk 0:03:00]}  a5 {[%clk 0:02:51]} 10. Bg5 {[%clk 0:03:00]}  h6 {[%clk 0:02:51]} 11. Be3 {[%clk 0:03:01]}  b6 {[%clk 0:02:51]} 12. Nd2 {[%clk 0:03:01]}  Ng4 {[%clk 0:02:49]} 13. Bxg4 {[%clk 0:03:01]}  Bxg4 {[%clk 0:02:50]} 14. f3 {[%clk 0:03:01]}  Bd7 {[%clk 0:02:50]} 15. b3 {[%clk 0:03:02]}  f5 {[%clk 0:02:51]} 16. a3 {[%clk 0:03:01]}  f4 {[%clk 0:02:51]} 17. Bf2 {[%clk 0:03:00]}  g5 {[%clk 0:02:52]} 18. b4 {[%clk 0:03:00]}  Nb7 {[%clk 0:02:48]} 19. Rab1 {[%clk 0:02:21]}  axb4 {[%clk 0:02:41]} 20. axb4 {[%clk 0:02:21]}  g4 {[%clk 0:02:37]} 21. fxg4 {[%clk 0:02:14]}  Bxg4 {[%clk 0:02:37]} 22. Nf3 {[%clk 0:02:14]}  Qd7 {[%clk 0:02:33]} 23. Nh4 {[%clk 0:02:01]}  Bf6 {[%clk 0:02:29]} 24. Nf5 {[%clk 0:02:00]}  Kh7 {[%clk 0:02:23]} 25. h3 {[%clk 0:01:57]}  Bh5 {[%clk 0:02:20]} 26. Kh2 {[%clk 0:01:50]}  Bg6 {[%clk 0:02:19]} 27. g4 {[%clk 0:01:49]}  fxg3+ {[%clk 0:02:19]} 28. Bxg3 {[%clk 0:01:48]}  Rf7 {[%clk 0:02:15]} 29. Rf2 {[%clk 0:01:46]}  Raf8 {[%clk 0:02:14]} 30. Rbf1 {[%clk 0:01:45]}  Bg5 {[%clk 0:02:13]} 31. Nh4 {[%clk 0:01:34]}  Rxf2+ {[%clk 0:02:05]} 32. Rxf2 {[%clk 0:01:33]}  Rxf2+ {[%clk 0:01:54]} 33. Qxf2 {[%clk 0:01:34]}  Nd8 {[%clk 0:01:49]} 34. Nxg6 {[%clk 0:01:33]}  Kxg6 {[%clk 0:01:50]} 35. h4 {[%clk 0:01:33]}  Be7 {[%clk 0:01:47]} 36. Qf3 {[%clk 0:01:30]}  h5 {[%clk 0:01:41]} 37. Nd1 {[%clk 0:01:30]}  Nf7 {[%clk 0:01:38]} 38. Ne3 {[%clk 0:01:30]}  Nh6 {[%clk 0:01:38]} 39. Bf2 {[%clk 0:01:25]}  Qa4 {[%clk 0:01:31]} 40. b5 {[%clk 0:01:19]}  Qa2 {[%clk 0:01:27]} 41. Nf5 {[%clk 0:01:15]}  Ng4+ {[%clk 0:01:22]} 42. Kg3 {[%clk 0:01:15]}  Bf6 {[%clk 0:01:20]} 43. Bg1 {[%clk 0:01:08]}  Qxc4 {[%clk 0:01:12]} 44. Ne3 {[%clk 0:01:05]}  Qc1 {[%clk 0:01:11]} 45. Qf5+ {[%clk 0:01:00]}  Kg7 {[%clk 0:01:02]} 46. Qd7+ {[%clk 0:01:00]}  Kf8 {[%clk 0:01:01]} 47. Qc8+ {[%clk 0:00:57]}  Kf7 {[%clk 0:00:40]} 48. Qd7+ {[%clk 0:00:56]}  Be7 {[%clk 0:00:35]} 49. Qe6+ {[%clk 0:00:51]}  Kf8 {[%clk 0:00:35]} 50. Qc8+ {[%clk 0:00:49]}  Kg7 {[%clk 0:00:32]} 51. Nf5+ {[%clk 0:00:49]}  Kh7 {[%clk 0:00:32]} 52. Bxb6 {[%clk 0:00:35]}  Qf4+ {[%clk 0:00:25]} 53. Kg2 {[%clk 0:00:34]}  Qxe4+ {[%clk 0:00:25]} 54. Kf1 {[%clk 0:00:33]}  cxb6 {[%clk 0:00:19]} 55. Nxe7 {[%clk 0:00:33]}  Qh1+ {[%clk 0:00:11]} 56. Ke2 {[%clk 0:00:33]}  Qg2+ {[%clk 0:00:12]} 57. Kd3 {[%clk 0:00:29]}  Qf3+ {[%clk 0:00:12]} 58. Kc2 {[%clk 0:00:26]}  Ne3+ {[%clk 0:00:09]} 59. Kb2 {[%clk 0:00:22]}  Qf2+ {[%clk 0:00:06]} 60. Kb1 {[%clk 0:00:21]}  Qg1+ {[%clk 0:00:04]} 61. Kb2 {[%clk 0:00:22]}  Qf2+ {[%clk 0:00:05]} 62. Kb1 {[%clk 0:00:22]}  Qf1+ {[%clk 0:00:06]} 63. Kb2 {[%clk 0:00:22]}  Qxb5+ {[%clk 0:00:06]} 64. Kc1 {[%clk 0:00:21]}  Qc4+ {[%clk 0:00:06]} 65. Qxc4 {[%clk 0:00:20]}  Nxc4 {[%clk 0:00:07]} 66. Nf5 {[%clk 0:00:19]}  Kg6 {[%clk 0:00:07]} 67. Ne7+ {[%clk 0:00:19]}  Kf6 {[%clk 0:00:07]} 68. Nc6 {[%clk 0:00:19]}  Ne3 {[%clk 0:00:07]} 69. Nb4 {[%clk 0:00:19]}  Nf5 {[%clk 0:00:07]} 70. Kd2 {[%clk 0:00:19]}  Nxh4 {[%clk 0:00:08]} 71. Ke3 {[%clk 0:00:20]}  Ng6 {[%clk 0:00:09]} 72. Ke4 {[%clk 0:00:21]}  h4 {[%clk 0:00:09]} 73. Kf3 {[%clk 0:00:20]}  Kf5 {[%clk 0:00:10]} 74. Nc2 {[%clk 0:00:19]}  e4+ {[%clk 0:00:10]} 75. Kg2 {[%clk 0:00:19]}  Nf4+ {[%clk 0:00:09]} 76. Kf2 {[%clk 0:00:18]}  Nxd5 {[%clk 0:00:10]} 0-1


[Site "https://www.chess.com"]

[Event "Titled Tuesday Blitz March 28 Early 2023"]
[White "Castellanos Gomez, Alejandro"]
[Black "Harshavardhan G B"]
[WhiteFideId "22284141"]
[BlackFideId "25059009"]
[WhiteElo "2158"]
[BlackElo "2323"]
[Result "0-1"]
[Round "01"]
[TimeControl "180+2"]
[Date "2023.03.28"]
[WhiteClock "0:00:02"]
[BlackClock "0:00:07"]

1. d4 {[%clk 0:02:59]}  Nf6 {[%clk 0:02:52]} 2. Bf4 {[%clk 0:03:00]}  d6 {[%clk 0:02:47]} 3. Nc3 {[%clk 0:02:59]}  Nbd7 {[%clk 0:02:46]} 4. Nf3 {[%clk 0:02:57]}  g6 {[%clk 0:02:45]} 5. e4 {[%clk 0:02:57]}  Bg7 {[%clk 0:02:45]} 6. Qd2 {[%clk 0:02:58]}  O-O {[%clk 0:02:44]} 7. O-O-O {[%clk 0:02:57]}  c5 {[%clk 0:02:44]} 8. dxc5 {[%clk 0:02:57]}  Nxc5 {[%clk 0:02:44]} 9. e5 {[%clk 0:02:57]}  Nh5 {[%clk 0:02:44]} 10. Be3 {[%clk 0:02:33]}  Qa5 {[%clk 0:02:33]} 11. exd6 {[%clk 0:02:32]}  exd6 {[%clk 0:02:30]} 12. Qxd6 {[%clk 0:02:08]}  b6 {[%clk 0:01:57]} 13. Bd4 {[%clk 0:01:58]}  Bg4 {[%clk 0:01:45]} 14. Bxg7 {[%clk 0:01:52]}  Nxg7 {[%clk 0:01:46]} 15. Be2 {[%clk 0:01:42]}  Rac8 {[%clk 0:01:06]} 16. Kb1 {[%clk 0:01:42]}  Nge6 {[%clk 0:00:50]} 17. Qg3 {[%clk 0:01:32]}  Bxf3 {[%clk 0:00:43]} 18. Bxf3 {[%clk 0:01:29]}  Na4 {[%clk 0:00:38]} 19. Nxa4 {[%clk 0:01:29]}  Qxa4 {[%clk 0:00:39]} 20. Rd2 {[%clk 0:01:29]}  Nd4 {[%clk 0:00:34]} 21. Qf4 {[%clk 0:01:16]}  Rc4 {[%clk 0:00:31]} 22. b3 {[%clk 0:00:55]}  Qb4 {[%clk 0:00:17]} 23. Bd5 {[%clk 0:00:26]}  Nxb3 {[%clk 0:00:14]} 24. Bxc4 {[%clk 0:00:10]}  Nxd2+ {[%clk 0:00:13]} 25. Kc1 {[%clk 0:00:10]}  Nxc4 {[%clk 0:00:13]} 26. Qd4 {[%clk 0:00:10]}  Qa3+ {[%clk 0:00:12]} 27. Kb1 {[%clk 0:00:09]}  Qb4+ {[%clk 0:00:11]} 28. Kc1 {[%clk 0:00:09]}  a5 {[%clk 0:00:11]} 29. Rd1 {[%clk 0:00:07]}  Re8 {[%clk 0:00:11]} 30. Qa1 {[%clk 0:00:02]}  Qa3+ {[%clk 0:00:07]} 31. Kb1 {[%clk 0:00:02]}  Nd2+ {[%clk 0:00:07]} 0-1


[Site "https://www.chess.com"]